Cogmind - Beta 9.3 *** ADVENTURER MODE // 2019.12.20 @ 00:24:01 Player: Sir Arcana Result: Self-destructed Performance ------------- Evolutions (2) 1000 Regions Visited (4) 800 Robots Destroyed (40) 200 Value Destroyed (950) 950 Prototype IDs (0) 0 Alien Tech Used (0) 0 Bonus (102) 102 TOTAL SCORE: 3052 Bonus ------- Follower Combat Kills 102 Cogmind --------- Core Integrity 550/550 Matter 290/300 Energy 180/180 System Corruption 0% Temperature Cool (0) Movement Walking (150) Ox1 Location -8/Materials Parts ------- > --- POWER (2) -------- Light Deuterium Engine Light Deuterium Engine > --- PROPULSION (3) --- Aluminum Leg Aluminum Leg Aluminum Leg > --- UTILITY (4) ------ Medium Storage Unit Medium Storage Unit Signal Interpreter Improved Light Armor Plating > --- WEAPON (2) ------- Ion Cannon Missile Launcher > --- INVENTORY (12) --- Ion Engine Improved Ion Engine Aluminum Leg Aluminum Leg Heat Sink Medium Battery (200) Shield Generator Electrolaser Electrolaser Ion Cannon Ion Cannon Ion Cannon Peak State ------------ > --- POWER ------------ Light Deuterium Engine Light Deuterium Engine > --- PROPULSION ------- Aluminum Leg Aluminum Leg Aluminum Leg > --- UTILITY ---------- Medium Storage Unit Medium Storage Unit Signal Interpreter Improved Light Armor Plating > --- WEAPON ----------- Ion Cannon Missile Launcher > --- INVENTORY -------- Ion Engine Improved Ion Engine Aluminum Leg Aluminum Leg Heat Sink Medium Battery Shield Generator Electrolaser Electrolaser Ion Cannon Ion Cannon Ion Cannon [Rating: 23] Favorites ----------- Power Ion Engine Engine Ion Engine Propulsion Aluminum Leg Leg Aluminum Leg Hover Unit Hover Unit Utility Medium Storage Unit Device Heat Sink Storage Medium Storage Unit Processor Signal Interpreter Protection Light Armor Plating Weapon Ion Cannon Energy Gun EM Pulse Gun Energy Cannon Ion Cannon Launcher Rocket Launcher Build | -11 -10 -9 -9 -8 ------- Run | Scr Mat Mat Min Mat Slots Evolved 4 | . . 2 . 2 Power 1 | . . . . 1 Propulsion 1 | . . 1 . . Utility 2 | . . 1 . 1 Weapon . | . . . . . Parts Attached 62 | 7 14 30 3 8 Power 9 | 1 1 2 1 4 Engine 9 | 1 1 2 1 4 Core . | . . . . . Reactor . | . . . . . Propulsion 21 | 2 6 12 1 . Treads . | . . . . . Leg 16 | 2 4 9 1 . Wheel . | . . . . . Hover 5 | . 2 3 . . Flight . | . . . . . Utility 13 | 2 4 4 . 3 Device 6 | 1 3 2 . . Storage 3 | 1 1 1 . . Processor 1 | . . . . 1 Hackware . | . . . . . Protection 3 | . . 1 . 2 Artifact . | . . . . . Weapon 19 | 2 3 12 1 1 Energy Gun 13 | 2 1 10 . . Energy Cannon 4 | . 2 2 . . Ballistic Gun . | . . . . . Ballistic Cannon . | . . . . . Launcher 2 | . . . 1 1 Special Weapon . | . . . . . Impact Weapon . | . . . . . Slashing Weapon . | . . . . . Piercing Weapon . | . . . . . Special Melee Weapon . | . . . . . Unidentified Prototypes . | . . . . . Parts Lost 11 | . 1 10 . . Power 1 | . . 1 . . Propulsion 1 | . . 1 . . Utility 1 | . . 1 . . Weapon 8 | . 1 7 . . Highest Loss Streak 5 | . 1 5 . . Average Slot Usage (%) 99 | . 99 97 100 100 Engine 12 | . 14 11 11 18 Leg 26 | . 27 18 33 27 Hover 3 | . . 13 . . Device 13 | . 13 20 11 6 Storage 16 | . 14 11 22 18 Protection 1 | . . . . 9 Energy Gun 7 | . 15 9 . . Energy Cannon 13 | . 12 11 16 9 Launcher 2 | . . . 5 9 Naked Turns . | . . . . . Heaviest Build 44 | 14 22 34 34 44 Greatest Support 30 | 20 20 30 30 30 Greatest Overweight (x) 2 | 2 2 1 1 1 Average Overweight (x) . | . . . 1 1 Largest Inventory Capacity 12 | 6 8 12 12 12 Average Capacity 9 | 5 6 8 12 12 Most Carried 12 | 6 8 12 12 12 Average Carried 9 | 3 6 7 11 11 Final Capacity 12 | 6 8 12 12 12 Final Carried 12 | 5 8 12 12 12 Class Distribution -------------------- 68% | Scavenger-Mutant 31% | Mutant Dominant Class ---------------- Mutant | -10/Materials Scavenger-Mutant | -9/Materials Scavenger-Mutant | -9/Mines Scavenger-Mutant | -8/Materials Resources | -11 -10 -9 -9 -8 ----------- Run | Scr Mat Mat Min Mat Matter Collected 832 | 270 135 305 52 70 Remotely 73 | 73 . . . . Salvage Created 1354 | 75 395 784 42 58 Parts 83 | 2 32 44 5 . Haulers Intercepted . | . . . . . Recyclers Shooed 1 | . . 1 . . Parts Field Recycled . | . . . . . Retrieved Matter . | . . . . . Parts Self-Destructed . | . . . . . Prevented . | . . . . . Kills | -11 -10 -9 -9 -8 ------- Run | Scr Mat Mat Min Mat Combat Hostiles Destroyed 33 | . 11 18 3 1 Guns 17 | . 8 9 . . Cannons 12 | . 3 8 . 1 AOE 4 | . . 1 3 . Classes Destroyed 6 | 1 3 2 . . Worker 1 | . . 1 . . Recycler 1 | 1 . . . . Watcher 5 | . 3 2 . . Swarmer 15 | . 6 7 2 . Grunt 13 | . 5 7 1 . Sentry 5 | . . 4 . 1 Best Kill Streak 5 | 1 3 5 2 1 Combat Bots Only 4 | . 3 4 2 1 Max Kills in Single Turn 2 | 1 1 1 2 1 Gunslinging . | . . . . . Exploded 2 | . . 1 2 . Melee . | . . . . . Uniques/NPCs Destroyed . | . . . . . Combat | -11 -10 -9 -9 -8 -------- Run | Scr Mat Mat Min Mat Damage Taken 1332 | . 178 996 125 33 Core 173 | . 16 106 51 . Absorbed by Shields . | . . . . . Core Remaining (%) 84 | 100 93 . 60 . Volleys Fired 89 | 2 24 50 6 7 Largest 2 | 2 2 2 1 1 Hottest 126 | 80 112 126 60 60 Shots Fired 146 | 4 46 83 6 7 Gun 88 | 4 36 48 . . Cannon 56 | . 10 35 4 7 Launcher 2 | . . . 2 . Special . | . . . . . Kinetic . | . . . . . Thermal 48 | . . 37 4 7 Explosive 2 | . . . 2 . Electromagnetic 96 | 4 46 46 . . Robot Hit Streak 37 | 4 37 21 3 5 Robot Miss Streak 2 | . 1 2 1 1 Penetration Max . | . . . . . Secondary Targets 2 | . 1 1 . . Max Gunslinging Chain 1 | . 1 1 . . Shots Hit Robots 117 | 4 36 68 3 6 Core Hits 57 | 1 19 31 4 2 Critical Hits . | . . . . . Critical Kills . | . . . . . Critical Parts Destroyed . | . . . . . Melee Attacks . | . . . . . Impact . | . . . . . Slashing . | . . . . . Piercing . | . . . . . Sneak Attacks . | . . . . . Combat Hostiles . | . . . . . Follow-up Attacks . | . . . . . Damage Inflicted 2410 | 116 548 1333 278 135 Guns 1096 | 54 397 645 . . Cannons 946 | . 151 590 70 135 Explosions 368 | 62 . 98 208 . Melee . | . . . . . Ramming . | . . . . . Kinetic . | . . . . . Thermal 936 | 62 . 669 70 135 Explosive 208 | . . . 208 . Electromagnetic 1266 | 54 548 664 . . Impact . | . . . . . Slashing . | . . . . . Piercing . | . . . . . Highest Corruption . | . . . . . Average Corruption . | . . . . . Corruption Purged . | . . . . . Overload Shots . | . . . . . Overflow Damage 16 | . 6 10 . . Projectiles 16 | . 6 10 . . Explosions . | . . . . . Melee . | . . . . . Knockbacks . | . . . . . Impact . | . . . . . Kinetic . | . . . . . Secondary . | . . . . . Self-Inflicted Damage 41 | . . 41 . . Shots 2 | . . 2 . . Rammed . | . . . . . Targets Rammed . | . . . . . Kicked . | . . . . . Crushed . | . . . . . Highest Temperature 164 | 36 164 132 12 78 Average Temperature 46 | 20 67 34 7 27 Received Heat Transfer 714 | . 96 516 84 18 Siege Activations . | . . . . . Robots Corrupted . | . . . . . Combat Hostiles . | . . . . . Parts Fried 5 | . 2 3 . . Impact Corruptions . | . . . . . Robots Melted . | . . . . . Combat Hostiles . | . . . . . Parts Melted 3 | . . 1 . 2 Heat Transferred 1667 | 50 . 1284 111 222 Parts Sabotaged . | . . . . . Parts Stolen . | . . . . . Parts Stripped . | . . . . . Power Chain Reactions 3 | 1 . 2 . . Missiles Intercepted . | . . . . . Alert | -11 -10 -9 -9 -8 ------- Run | Scr Mat Mat Min Mat Peak Influence 239 | 5 193 239 74 99 Average Influence 83 | 1 92 117 63 62 Maximum Alert Level 1 | . . 1 . . Low Security (%) 93 | 100 100 72 100 100 Level 1 6 | . . 27 . . Level 2 . | . . . . . Level 3 . | . . . . . Level 4 . | . . . . . Level 5 . | . . . . . High Security . | . . . . . Max Security . | . . . . . Squads Dispatched 3 | . 2 1 . . Investigation 3 | . 2 1 . . Extermination . | . . . . . Reinforcement . | . . . . . Assault . | . . . . . Garrison . | . . . . . Intercept . | . . . . . Construction Impeded . | . . . . . Haulers Reinforced . | . . . . . Stealth | -11 -10 -9 -9 -8 --------- Run | Scr Mat Mat Min Mat Distress Signals 4 | . 2 2 . . Communications Jammed . | . . . . . Distress Signals . | . . . . . Times Spotted 57 | . 15 33 6 3 Peak Tracking Total 6 | . 4 6 3 2 Tactical Retreats 6 | . 1 5 . . Traps | -11 -10 -9 -9 -8 ------- Run | Scr Mat Mat Min Mat Traps Triggered 3 | . 2 1 . . Indirectly . | . . . . . Trap Hack Attempts . | . . . . . Triggered . | . . . . . Disarmed . | . . . . . Reprogrammed . | . . . . . Reused . | . . . . . Traps Extracted . | . . . . . Installed . | . . . . . Triggered . | . . . . . Machines | -11 -10 -9 -9 -8 ---------- Run | Scr Mat Mat Min Mat Machines Disabled 2 | . . 2 . . Max in Single Turn 2 | . . 2 . . Machines Sabotaged . | . . . . . Garrisons Compromised . | . . . . . Overloaded Fab Kills . | . . . . . Fab Network Shutdowns . | . . . . . Hacking | -11 -10 -9 -9 -8 --------- Run | Scr Mat Mat Min Mat Machines Accessed 6 | . 3 2 . 1 Terminals 4 | . 2 2 . . Fabricators . | . . . . . Repair Stations . | . . . . . Recycling Units 1 | . 1 . . . Scanalyzers 1 | . . . . 1 Garrison Access . | . . . . . Total Hacks 10 | . 5 3 . 2 Successful 7 | . 3 2 . 2 Failed 3 | . 2 1 . . Catastrophic . | . . . . . Database Lockouts . | . . . . . Manual 1 | . 1 . . . Terminals 7 | . 4 3 . . Fabricators . | . . . . . Repair Stations . | . . . . . Recycling Units 1 | . 1 . . . Scanalyzers 2 | . . . . 2 Garrison Access . | . . . . . Terminal Hacks 4 | . 2 2 . . Unreport Threat 1 | . . 1 . . Locate Traps 1 | . 1 . . . Dispatch Records 1 | . . 1 . . Zone Layout 1 | . 1 . . . Fabricator Hacks . | . . . . . Repair Station Hacks . | . . . . . Recycling Unit Hacks 1 | . 1 . . . Retrieve Components 1 | . 1 . . . Scanalyzer 2 | . . . . 2 Insert Component 1 | . . . . 1 Analyze 1 | . . . . 1 Garrison Access Hacks . | . . . . . Unauthorized Hacks . | . . . . . Terminals . | . . . . . Fabricators . | . . . . . Repair Stations . | . . . . . Recycling Units . | . . . . . Scanalyzers . | . . . . . Garrison Access . | . . . . . Data Cores Recovered . | . . . . . Used . | . . . . . Hacking Detections 4 | . 3 1 . . Full Trace Events . | . . . . . Feedback Events . | . . . . . Feedback Blocked . | . . . . . Robot Schematics Acquired . | . . . . . Robots Built . | . . . . . Matter . | . . . . . Time . | . . . . . Total Robot Build Rating . | . . . . . Part Schematics Acquired 1 | . . . . 1 Parts Built . | . . . . . Matter . | . . . . . Time . | . . . . . Total Part Build Rating . | . . . . . Parts Repaired . | . . . . . Time . | . . . . . Parts Recycled . | . . . . . Recycled Matter . | . . . . . Retrieved Matter . | . . . . . Retrieved Components 9 | . 9 . . . Parts Scanalyzed 1 | . . . . 1 Part Schematics Acquired 1 | . . . . 1 Parts Damaged . | . . . . . Bothacking | -11 -10 -9 -9 -8 ------------ Run | Scr Mat Mat Min Mat Used RIF Installer . | . . . . . Robots Hacked . | . . . . . Non-combat . | . . . . . Combat . | . . . . . Robot Hacks Applied . | . . . . . Relay Couplers Released . | . . . . . Robots Rewired . | . . . . . Allies Hacked . | . . . . . Hacks Repelled . | . . . . . Allies | -11 -10 -9 -9 -8 -------- Run | Scr Mat Mat Min Mat Total Allies 2 | . . . 2 . Largest Group 2 | . . . 2 2 Highest-Rated Group 45 | . . . 45 45 Highest-Rated Ally 31 | . . . 31 31 Total Orders . | . . . . . Ally Attacks 22 | . . . 9 13 Total Damage 314 | . . . 104 210 Kills 5 | . . . 3 2 Allies Corrupted . | . . . . . Allies Melted . | . . . . . Intel | -11 -10 -9 -9 -8 ------- Run | Scr Mat Mat Min Mat Robot Analysis Total . | . . . . . Derelict Logs Recovered 2 | . . . 2 . Drone Launches . | . . . . . Drone Recoveries . | . . . . . Exploration | -11 -10 -9 -9 -8 ------------- Run | Scr Mat Mat Min Mat Turns Passed 3020 | 84 873 745 987 331 Spaces Moved 1678 | 56 427 361 634 200 Core 20 | 20 . . . . Treads . | . . . . . Legs 1538 | 36 406 262 634 200 Wheels . | . . . . . Hover 120 | . 21 99 . . Flight . | . . . . . Fastest Speed 50 | 50 116 112 150 150 Average Speed 137 | 108 129 123 150 150 Slowest Speed 190 | 150 190 150 150 150 Overloaded Moves . | . . . . . Propulsion Burnouts . | . . . . . Robots Hopped . | . . . . . Cave-ins Triggered . | . . . . . Exploration Rate (%) 45 | 5 69 30 98 26 Regions Visited 4 Branch Regions 1 Pre-discovered Areas . | . . . . . Known Exits Taken . | . . . . . Unknown Exits Taken 4 | 1 1 1 1 . Scrap Searched 1 | . . . 1 . Spaces Dug . | . . . . . Terrain Destroyed 24 | 6 . 4 14 . Melee . | . . . . . Projectile . | . . . . . AOE 24 | 6 . 4 14 . Actions | -11 -10 -9 -9 -8 --------- Run | Scr Mat Mat Min Mat Total 2243 | 74 704 575 665 225 Wait 345 | . 215 108 19 3 Move 1674 | 55 426 360 633 200 Hop . | . . . . . Pick Up 38 | 10 10 15 1 2 Fast Attach 13 | 2 4 6 . 1 Attach 19 | 5 2 10 . 2 Detach . | . . . . . Swap 30 | . 8 14 3 5 Drop 35 | . 15 12 3 5 Fire 89 | 2 24 50 6 7 Melee . | . . . . . Ram . | . . . . . Kick . | . . . . . Crush . | . . . . . Escape Stasis . | . . . . . Rewire . | . . . . . Trap . | . . . . . Miscellaneous . | . . . . . Route ------- -11/Scrapyard -10/Materials (discovered 3 exits: *Mat x2 / [*Min]) -9/Materials -9/Mines (discovered 2 exits: *Mat x2) -8/Materials (discovered 1 exit: Fac) History --------- Turn | Location | Event 5 | -11/Scrapyard | Discovered new exit (range 15) 85 | -11/Scrapyard | Entered Materials 175 | -10/Materials | Discovered new exit (range 7) 306 | -10/Materials | Build established: Mutant 414 | -10/Materials | Discovered new exit (range 13) 630 | -10/Materials | Discovered new exit (range 13) 958 | -10/Materials | Entered another Materials area 958 | -9/Materials | Evolved 2 slots: Propulsion x1, Utility x1 1253 | -9/Materials | Build established: Scavenger-Mutant 1569 | -9/Materials | Lost 5 parts (1p1n3w) 1652 | -9/Materials | Lost 4 parts (1u3w) 1683 | -9/Materials | Discovered new exit (range 9) 1703 | -9/Materials | Entered Mines 1726 | -9/Mines | Discovered new exit (range 15) 1781 | -9/Mines | Learned location of 1 exit from Materials 1832 | -9/Mines | Discovered new exit (range 10) 2051 | -9/Mines | Received a Rocket Launcher from a helpful Derelict 2366 | -9/Mines | Learned location of 1 exit from Proximity Caves 2690 | -9/Mines | Entered Materials 2690 | -8/Materials | Accompanied by 2 allies 2690 | -8/Materials | Evolved 2 slots: Power x1, Utility x1 2691 | -8/Materials | Identified exit to Factory 2695 | -8/Materials | Led the pair of lost Derelicts to an unsafe place 3021 | -8/Materials | Self-destructed Last Messages --------------- 02850_ K-01 Serf collects debris. 02898_ Dropped Lgt. Armor Plating. 02916_ Dropped Rocket Launcher. 02929_ Dropped Heat Sink. 02930_ Acquired Med. Battery. 02944_ T-07 Excavator is excavating. 02979_ G-47 Trooper destroyed. 02983_ W-25 Informer destroyed. 02985_ Acquired 30 matter. 02988_ Dropped Imp. Ion Engine. 02989_ Acquired Lgt. Deuterium Engine. 02991_ R-06 Scavenger collects Visual Processing Unit. 03009_ Connecting with Scanalyzer... 03009_ Current location identified: Materials >>Insert(Electrolaser) Scanning Electrolaser... Ready to analyze. >>Scanalyze Scanning: Electrolaser... Schematic downloaded. Map ----- +----------------------------------------------------+ | ?????????????????????????????????????????????????? | | ?????????????????????????????????????????????????? | | ?????????????????????????????????????????????????? | | ?????????????????????????????????????????????????? | | ?????????????????????????????????????????????????? | | ?????????????????????????????????????????????????? | | ?????????????????????????????????????????????????? | | ????????????????????????????????######?????????### | | ????????????????????????????????? #?????????# ] | | ?????????????????????????????????? ########### | | ????????????????????##########+#### #? # # " | | ????????????????????# !** ! # #?? # # " | | ????????????????????? !** # ##### ## + " | | ????????????????????? """ *** """ # !! # | | ????????????????????? """ """ # !^! # | | ??????????? ??????# """ """ # !! ###### | | ?????????? ?????# # #######+ | | ????????? ################+## ! + | | ????????? %% # | | ????????? [ * ! # | | ????????????""""""" ############+##### """ | | ???????????????"""" # #?? ??#""""" | | ???????????????"""" # "" # """ """ #""""" | | ???????????????"""" # g """# """ """ #""""" | | ???????????????"""" #z S"# """ """ # """ | | ?????????? @ # """ """ # | | ????????? # """ # ###+#### | | ??????????########## # """ #?? ????# #??? | | ???????????????????# # """ #?? ????# #??? | | ???????????????????# # #???###?????# #??? | | ?????????????####### ########???????????# #??? | | ???????????? #################### ###" | | ???????????? #" | | ??????????? + | | ??????????? #" | | ??????????? ##########+###########" | | ?????????????"" """ """ #????????# ] #?? | | ????????????""" """ """ #????????# * #?? | | ?????????" """ """ """ #????????# """ #?? | | ?????? #????????# """ """ #?? | | ?????? #????##### "R """ ??? | | ?????????############### #??? # """ """ ??? | | ??????????????# + #??? # ??? | | ??????????????#""" # #???" ###########??? | | ??????????????#"R ! # #?""" # ######## | | ??????????????#""" # ##""" # # | | ??????????????# # ## # # | | ??????????????# """ # ##""" # # | | ??????????????# """ # ##""" # ###+#### | | ??????????????# """%]# ##""" ## ## | +----------------------------------------------------+ Best States ------------- Heat Dissipation 41 Energy Generation 23 Energy Capacity 400 Matter Stores 300 Matter Capacity 300 Sight Range 16 Robot Scan Range 10 Terrain Scan Density 10 Armor Coverage 150 Resistance: KI 20 Resistance: TH 20 Resistance: EX 20 Resistance: EM 20 Resistance: I 20 Resistance: S 20 Resistance: P 20 Evasion (%) 40 Offensive Hacking 10 Item Schematics ----------------- Electrolaser | -8/Materials | Scanalyzed Robot Schematics ------------------ None Fabricated ------------ Nothing Alien Tech Used ----------------- None Achievements -------------- None Challenges ------------ None Game ------ Seed RecyclingMatterBoregun Manual? 0 Play Time 00:42:01 Cumulative 19.0 hours Start 2019.12.16 @ 19:15:37 End 2019.12.20 @ 00:24:01 Sessions 3 Manual Loads 0 Difficulty Adventurer Special Mode None Game No. 13 Rogue 0 Adventurer 13 Explorer 0 Win Type - Total 0 Types 0/0/0/0/0/0/0 Lore% 26 Gallery% 36 Achievement% 31 Wizard Run 0 Options --------- ASCII 0 Keyboard 0 Movement Mouse Keybinds 0 Fullscreen 2 Font 14/Cog Map View 72x54 Tactical HUD 1 Map Filters NONE Filters NONE Steam 1 RUN: 84f05f9c-2d1d-4f1b-bed4-0b042de74fc7